fUST/lending_fUST_20250421
["ID","MTS","AMOUNT","RATE_DAILY","PERIOD"]
[358521054,1745229053918,-170.0,0.0002463,2]
[358521056,1745229053927,-170.0,0.0002463,2]
[358521058,1745229053937,-170.0,0.0002463,2]
[358521060,1745229053947,-153.0,0.0002463,2]
[358521062,1745229053956,-153.0,0.0002463,2]
[358521064,1745229053965,-153.0,0.0002463,2]
[358521066,1745229053975,-153.0,0.0002463,2]
[358521068,1745229053984,-153.0,0.0002463,2]
[358521070,1745229053993,-153.0,0.0002463,2]
[358521072,1745229054004,-170.0,0.0002463,2]
[358521074,1745229054013,-170.0,0.0002463,2]
[358521076,1745229054023,-170.0,0.0002463,2]
[358521078,1745229054032,-170.0,0.0002463,2]
[358521080,1745229054041,-170.0,0.0002463,2]
[358521082,1745229054051,-170.0,0.0002463,2]
[358521084,1745229054061,-170.0,0.0002463,2]
[358521086,1745229054071,-170.0,0.0002463,2]
[358521088,1745229054080,-170.0,0.0002463,2]
[358521090,1745229054092,-170.0,0.0002463,2]
[358521092,1745229054101,-170.0,0.0002463,2]
[358521094,1745229054111,-170.0,0.0002463,2]
[358521097,1745229054120,-170.0,0.0002463,2]
[358521098,1745229054130,-170.0,0.0002463,2]
[358521101,1745229054139,-153.0,0.0002463,2]
[358521103,1745229054148,-153.0,0.0002463,2]
[358521105,1745229054159,-153.0,0.0002463,2]
[358521107,1745229054168,-153.0,0.0002463,2]
[358521109,1745229054178,-153.0,0.0002463,2]
[358521111,1745229054187,-153.0,0.0002463,2]
[358521113,1745229054197,-153.0,0.0002463,2]
[358521115,1745229054206,-153.0,0.0002463,2]
[358521117,1745229054216,-157.53,0.0002463,2]
[358521119,1745229054226,-151.0,0.00024646,2]
[358521121,1745229054235,-800.0,0.00024648,2]
[358521123,1745229054245,-151.0,0.00024657,7]
[358521125,1745229054255,-162.313292,0.00024657,7]
[358521127,1745229054264,-151.0,0.00024657,7]
[358521129,1745229054274,-151.0,0.00024657,7]
[358521131,1745229054284,-1494.8,0.00024657,2]
[358521133,1745229054294,-271.46329901,0.00024657,2]
[358521136,1745229054305,-629.5958614,0.00024657,2]
[358521138,1745229054319,-543.66,0.00024657,2]
[358521140,1745229054329,-685.03,0.00024657,2]
[358521142,1745229054339,-2451.89,0.00024657,2]
[358521144,1745229054349,-1056.22,0.00024657,2]
[358521145,1745229054359,-1445.44,0.00024657,2]
[358521148,1745229054368,-545.59,0.00024657,2]
[358521150,1745229054378,-837.36,0.00024657,2]
[358521152,1745229054389,-987.22,0.00024657,2]
[358521154,1745229054399,-1671.49,0.00024657,2]
[358521156,1745229054409,-1206.58,0.00024657,2]
[358521158,1745229054419,-500.0,0.00024657,2]
[358521160,1745229054429,-6140.27,0.00024657,2]
[358521162,1745229054438,-7197.86,0.00024657,2]
[358521164,1745229054448,-1235.18,0.00024657,2]
[358521166,1745229054458,-2946.16,0.00024657,2]
[358521168,1745229054469,-1070.22,0.00024657,2]
[358521170,1745229054479,-631.87,0.00024657,2]
[358521172,1745229054489,-177.77853017,0.00024657,2]
[358521174,1745229054498,-977.7262069,0.00024658,4]
[358521176,1745229054508,-151.0,0.00024658,7]
[358521178,1745229054518,-200.0,0.00024658,15]
[358521180,1745229054528,-187.6,0.00024667,2]
[358521182,1745229054537,-800.0,0.00024698,2]
[358521184,1745229054546,-200.0,0.000247,2]
[358521186,1745229054556,-160.0,0.000247,7]
[358521188,1745229054566,-160.0,0.000247,7]
[358521190,1745229054575,-800.0,0.00024709,2]
[358521192,1745229054584,-154.2623979,0.00024712,2]
[358521194,1745229054594,-153.0,0.00024712,2]
[358521196,1745229054604,-153.0,0.00024712,2]
[358521198,1745229054614,-153.0,0.00024712,2]
[358521200,1745229054624,-800.0,0.00024723,2]
[358521202,1745229054635,-800.0,0.0002473,2]
[358521204,1745229054645,-800.0,0.00024734,2]
[358521206,1745229054655,-800.0,0.00024734,2]
[358521208,1745229054665,-707.79685256,0.00024741,2]
[358521211,1745229054675,-800.0,0.00024741,2]
[358521213,1745229054685,-800.0,0.00024757,2]
[358521215,1745229054695,-800.0,0.00024767,2]
[358521217,1745229054705,-155.0,0.00024773,2]
[358521219,1745229054715,-166856.01718509,0.0002478,7]
[358521221,1745229054725,-151.0,0.0002478,7]
[358521223,1745229054735,-151.0,0.0002478,7]
[358521225,1745229054745,-248.375766,0.0002478,7]
[358521227,1745229054755,-84122.9518948,0.000248,2]
[358521229,1745229054765,-151.0,0.000248,7]
[358521231,1745229054774,-151.0,0.000248,7]
[358521233,1745229054785,-151.0,0.000248,7]
[358521235,1745229054795,-295.260236,0.000248,7]
[358521237,1745229054804,-151.0,0.000248,7]
[358521239,1745229054814,-151.0,0.000248,7]
[358521241,1745229054824,-151.0,0.000248,7]
[358521243,1745229054834,-151.0,0.000248,7]
[358521245,1745229054844,-157.322081,0.000248,7]
[358521247,1745229054854,-151.0,0.000248,7]
[358521249,1745229054864,-151.0,0.000248,7]
[358521251,1745229054875,-213.11719,0.000248,7]
[358521253,1745229054885,-151.0,0.000248,7]
[358521255,1745229054896,-151.0,0.000248,7]
[358521257,1745229054906,-280.497225,0.000248,7]
[358521260,1745229054916,-280.497225,0.000248,7]
[358521262,1745229054926,-151.0,0.000248,7]
[358521264,1745229054936,-151.0,0.000248,7]
[358521266,1745229054946,-151.0,0.000248,7]
[358521268,1745229054956,-151.0,0.000248,7]
[358521270,1745229054966,-151.0,0.000248,7]
[358521272,1745229054976,-218.685545,0.000248,7]
[358521274,1745229054986,-218.685545,0.000248,7]
[358521276,1745229054996,-160.0,0.000248,7]
[358521278,1745229055005,-154.944577,0.000248,7]
[358521281,1745229055015,-574.212346,0.000248,2]
[358521283,1745229055025,-574.212346,0.000248,2]
[358521285,1745229055034,-151.0,0.000248,7]
[358521287,1745229055044,-151.0,0.000248,7]
[358521289,1745229055053,-226.920183,0.000248,7]
[358521291,1745229055063,-226.920183,0.000248,7]
[358521307,1745229055202,-151.0,0.000248,7]
[358521309,1745229055213,-151.0,0.000248,7]
[358521311,1745229055222,-151.0,0.000248,7]
[358521313,1745229055232,-160.0,0.000248,7]
[358521315,1745229055242,-160.0,0.000248,7]
[358521318,1745229055253,-254.997248,0.000248,7]
[358521320,1745229055262,-151.0,0.000248,7]
[358521322,1745229055272,-151.0,0.000248,7]
[358521324,1745229055281,-151.0,0.000248,7]
[358521326,1745229055291,-234.570834,0.000248,7]
[358521328,1745229055301,-234.570834,0.000248,7]
[358521330,1745229055310,-151.0,0.000248,7]
[358521332,1745229055324,-151.0,0.000248,7]
[358521334,1745229055334,-160.0,0.000248,7]
[358521336,1745229055343,-548.065619,0.000248,7]
[358521338,1745229055352,-151.0,0.000248,7]
[358521340,1745229055362,-548.065619,0.000248,7]
[358521342,1745229055372,-151.0,0.000248,7]
[358521344,1745229055381,-151.0,0.000248,7]
[358521347,1745229055392,-420.65680271,0.000248,7]
[358521349,1745229055402,-1011.581443,0.000248,7]
[358521351,1745229055411,-800.0,0.00024802,2]
[358521353,1745229055420,-800.0,0.00024825,2]
[358521355,1745229055430,-800.0,0.00024844,2]
[358521357,1745229055439,-800.0,0.0002485,2]
[358521359,1745229055449,-889.9677145,0.00024862,2]
[358521361,1745229055459,-800.0,0.00024876,2]
[358521363,1745229055470,-800.0,0.00024878,2]
[358521365,1745229055480,-800.0,0.00024895,2]
[358521367,1745229055489,-13845.69324355,0.000249,2]
[358521369,1745229055498,-1068.18051177,0.000249,3]
[358521371,1745229055508,-151.0,0.000249,7]
[358521373,1745229055517,-151.0,0.000249,7]
[358521375,1745229055527,-151.0,0.000249,7]
[358521377,1745229055537,-151.0,0.000249,7]
[358521379,1745229055547,-151.0,0.000249,7]
[358521381,1745229055556,-151.0,0.000249,7]
[358521383,1745229055565,-234.055284,0.000249,7]
[358521385,1745229055575,-151.0,0.000249,7]
[358521387,1745229055585,-228.182589,0.000249,7]
[358521389,1745229055595,-151.0,0.000249,7]
[358521391,1745229055605,-280.497225,0.000249,7]
[358521393,1745229055614,-280.497225,0.000249,7]
[358521396,1745229055625,-151.0,0.000249,7]
[358521398,1745229055634,-151.0,0.000249,7]
[358521400,1745229055643,-151.0,0.000249,7]
[358521402,1745229055653,-151.0,0.000249,7]
[358521403,1745229055662,-290.3449,0.000249,7]
[358521406,1745229055673,-218.685545,0.000249,7]
[358521408,1745229055683,-218.685545,0.000249,7]
[358521410,1745229055692,-574.212346,0.000249,2]
[358521412,1745229055701,-574.212346,0.000249,2]
[358521414,1745229055711,-151.0,0.000249,7]
[358521416,1745229055720,-151.0,0.000249,7]
[358521418,1745229055730,-226.920183,0.000249,7]
[358521420,1745229055740,-226.920183,0.000249,7]
[358521422,1745229055750,-151.0,0.000249,7]
[358521424,1745229055761,-151.0,0.000249,7]
[358521426,1745229055771,-151.0,0.000249,7]
[358521428,1745229055780,-549728.74946944,0.000249,2]
[358521858,1745230232552,-1000.0,0.00018055,2]
[358521859,1745230232562,-192.5920901,0.00018076,2]
[358521860,1745230232571,-159.700461,0.00018128,2]
[358521861,1745230232580,-840.76328316,0.00019073,2]
[358521862,1745230232590,-300.0,0.00019076,2]
[358521863,1745230232599,-300.0,0.00019076,2]
[358521864,1745230232609,-259.81883175,0.00019077,2]
[358521865,1745230232618,-500.0,0.00019077,2]
[358521866,1745230232628,-168.73785092,0.00019077,2]
[358521867,1745230232638,-500.0,0.00019077,2]
[358521868,1745230232648,-500.0,0.00019077,2]
[358521869,1745230232657,-244.47899244,0.00019077,2]
[358521870,1745230232667,-500.0,0.00019077,2]
[358521871,1745230232676,-500.0,0.00019077,2]
[358521872,1745230232686,-500.0,0.00019077,2]
[358521873,1745230232695,-500.0,0.00019077,2]
[358521875,1745230232706,-500.0,0.00019077,2]
[358521876,1745230232719,-500.0,0.00019077,2]
[358521877,1745230232730,-500.0,0.00019077,2]
[358521878,1745230232739,-500.0,0.00019077,2]
[358521879,1745230232749,-5794.16597939,0.00019078,2]
[358521901,1745230238776,-301.59459977,0.000189,2]
[358521903,1745230238786,-3955.92397871,0.00019078,2]
[358521925,1745230238987,-165.4889066,0.00019066,2]
[358521927,1745230238997,-98123.81592421,0.00019078,2]
[358521929,1745230239010,-67874.29858024,0.00019078,2]
[358521931,1745230239019,-151.0,0.00019166,2]
[358521933,1745230239029,-455.27021857,0.00019173,2]
[358521936,1745230239046,-500.0,0.00019173,2]
[358521939,1745230239059,-165.26882745,0.00019173,2]
[358521941,1745230239069,-160.34851007,0.00019173,2]
[358521943,1745230239079,-500.0,0.00019173,2]
[358521945,1745230239089,-500.0,0.00019173,2]
[358521947,1745230239099,-500.0,0.00019173,2]
[358521949,1745230239109,-500.0,0.00019173,2]
[358521951,1745230239119,-251.74833169,0.00019173,2]
[358521953,1745230239128,-500.0,0.00019173,2]
[358521955,1745230239138,-500.0,0.00019173,2]
[358521957,1745230239148,-500.0,0.00019173,2]
[358521959,1745230239157,-509.77259152,0.00019173,2]
[358521961,1745230239167,-501.05854735,0.00019173,2]
[358521963,1745230239177,-500.0,0.00019173,2]
[358521965,1745230239187,-500.0,0.00019173,2]
[358521967,1745230239197,-500.0,0.00019173,2]
[358521969,1745230239207,-500.0,0.00019173,2]
[358521971,1745230239217,-500.0,0.00019173,2]
[358521973,1745230239227,-500.0,0.00019178,2]
[358521975,1745230239237,-500.0,0.00019178,2]
[358521977,1745230239247,-359.28490689,0.00019178,2]
[358521979,1745230239257,-500.0,0.00019178,2]
[358521981,1745230239266,-500.0,0.00019178,2]
[358521983,1745230239277,-500.0,0.00019178,2]
[358521985,1745230239288,-500.0,0.00019178,2]
[358521988,1745230239298,-527.1,0.00019178,2]
[358521990,1745230239308,-500.0,0.00019178,2]
[358521992,1745230239318,-500.0,0.00019178,2]
[358521994,1745230239328,-500.0,0.00019178,2]
[358521996,1745230239338,-500.0,0.00019178,2]
[358521998,1745230239348,-500.0,0.00019178,2]
[358522000,1745230239358,-500.0,0.00019178,2]
[358522002,1745230239368,-500.0,0.00019178,2]
[358522004,1745230239377,-500.0,0.00019178,2]
[358522006,1745230239387,-585.21,0.00019178,2]
[358522008,1745230239397,-500.0,0.00019178,2]
[358522010,1745230239407,-624.51,0.00019178,2]
[358522012,1745230239416,-500.0,0.00019178,2]
[358522014,1745230239426,-500.0,0.00019178,2]
[358522016,1745230239435,-500.0,0.00019178,2]
[358522018,1745230239445,-500.0,0.00019178,2]
[358522020,1745230239455,-500.0,0.00019178,2]
[358522023,1745230239465,-500.0,0.00019178,2]
[358522025,1745230239475,-501.31037973,0.00019178,2]
[358522027,1745230239485,-500.0,0.00019178,2]
[358522029,1745230239494,-504.68518985,0.00019178,2]
[358522031,1745230239504,-500.0,0.00019178,2]
[358522033,1745230239513,-500.0,0.00019178,2]
[358522035,1745230239523,-500.0,0.00019178,2]
[358522037,1745230239533,-505.14580465,0.00019178,2]
[358522039,1745230239543,-500.0,0.00019178,2]
[358522041,1745230239552,-500.0,0.00019178,2]
[358522043,1745230239562,-500.0,0.00019178,2]
[358522045,1745230239572,-500.0,0.00019178,2]
[358522047,1745230239581,-525.14288422,0.00019178,2]
[358522049,1745230239591,-500.0,0.00019178,2]
[358522051,1745230239600,-500.0,0.00019178,2]
[358522053,1745230239610,-500.0,0.00019178,2]
[358522055,1745230239619,-500.0,0.00019178,2]
[358522057,1745230239629,-500.0,0.00019178,2]
[358522059,1745230239638,-500.0,0.00019178,2]
[358522061,1745230239647,-500.0,0.00019178,2]
[358522063,1745230239658,-500.0,0.00019178,2]
[358522065,1745230239667,-500.0,0.00019178,2]
[358522067,1745230239678,-500.0,0.00019178,2]
[358522069,1745230239688,-501.24093945,0.00019178,2]
[358522071,1745230239697,-500.0,0.00019178,2]
[358522072,1745230239707,-500.0,0.00019178,2]
[358522073,1745230239721,-500.0,0.00019178,2]
[358522074,1745230239731,-500.0,0.00019178,2]
[358522075,1745230239740,-500.0,0.00019178,2]
[358522076,1745230239749,-566.27,0.00019178,2]
[358522077,1745230239759,-500.0,0.00019178,2]
[358522078,1745230239768,-500.0,0.00019178,2]
[358522079,1745230239779,-500.0,0.00019178,2]
[358522080,1745230239789,-500.0,0.00019178,2]
[358522081,1745230239798,-500.0,0.00019178,2]
[358522082,1745230239807,-500.0,0.00019178,2]
[358522083,1745230239816,-500.0,0.00019178,2]
[358522084,1745230239825,-500.0,0.00019178,2]
[358522085,1745230239835,-500.0,0.00019178,2]
[358522086,1745230239844,-500.0,0.00019178,2]
[358522087,1745230239853,-500.0,0.00019178,2]
[358522089,1745230239862,-500.0,0.00019178,2]
[358522091,1745230239872,-500.0,0.00019178,2]
[358522093,1745230239881,-500.0,0.00019178,2]
[358522095,1745230239891,-500.0,0.00019178,2]
[358522097,1745230239900,-500.0,0.00019178,2]
[358522099,1745230239910,-553.83,0.00019178,2]
[358522101,1745230239919,-500.0,0.00019178,2]
[358522103,1745230239929,-500.0,0.00019178,2]
[358522105,1745230239938,-500.0,0.00019178,2]
[358522107,1745230239948,-500.0,0.00019178,2]
[358522109,1745230239957,-500.0,0.00019178,2]
[358522111,1745230239967,-500.0,0.00019178,2]
[358522113,1745230239976,-500.0,0.00019178,2]
[358522115,1745230239986,-500.0,0.00019178,2]
[358522117,1745230239995,-500.0,0.00019178,2]
[358522119,1745230240005,-500.0,0.00019178,2]
[358522121,1745230240014,-500.0,0.00019178,2]
[358522123,1745230240024,-500.0,0.00019178,2]
[358522125,1745230240034,-500.0,0.00019178,2]
[358522128,1745230240044,-500.0,0.00019178,2]
[358522130,1745230240053,-500.0,0.00019178,2]
[358522132,1745230240062,-500.0,0.00019178,2]
[358522134,1745230240072,-500.0,0.00019178,2]
[358522136,1745230240081,-500.0,0.00019178,2]
[358522138,1745230240090,-500.0,0.00019178,2]
[358522140,1745230240103,-500.0,0.00019178,2]
[358522142,1745230240113,-500.0,0.00019178,2]
[358522144,1745230240122,-500.0,0.00019178,2]
[358522146,1745230240131,-500.0,0.00019178,2]
[358522148,1745230240141,-500.0,0.00019178,2]
[358522150,1745230240151,-500.0,0.00019178,2]
[358522152,1745230240161,-500.0,0.00019178,2]
[358522154,1745230240170,-500.0,0.00019178,2]
[358522156,1745230240180,-500.0,0.00019178,2]
[358522158,1745230240189,-500.0,0.00019178,2]
[358522167,1745230240263,-500.0,0.00019178,2]
[358522169,1745230240274,-500.0,0.00019178,2]
[358522171,1745230240284,-500.0,0.00019178,2]
[358522174,1745230240293,-500.0,0.00019178,2]
[358522176,1745230240302,-500.0,0.00019178,2]
[358522178,1745230240312,-500.0,0.00019178,2]
[358522180,1745230240322,-500.0,0.00019178,2]
[358522182,1745230240331,-500.0,0.00019178,2]
[358522184,1745230240341,-525.69,0.00019178,2]
[358522186,1745230240350,-500.0,0.00019178,2]
[358522188,1745230240359,-593.55,0.00019178,2]
[358522190,1745230240368,-66.95993921,0.00019178,2]
[358522192,1745230240383,-405.83309056,0.00019178,2]
[358522195,1745230240395,-27.20697023,0.00019178,2]
[358522197,1745230240404,-500.0,0.00019178,2]
[358522199,1745230240413,-285.85445541,0.00019178,2]
[358522201,1745230240425,-214.14554459,0.00019178,2]
[358522203,1745230240434,-308.56738423,0.00019178,2]
[358522501,1745230243638,-191.43261577,0.00019178,2]
[358522504,1745230243648,-500.0,0.00019178,2]
[358522506,1745230243658,-506.79,0.00019178,2]
[358522507,1745230243667,-500.0,0.00019178,2]
[358522509,1745230243676,-500.0,0.00019178,2]
[358522512,1745230243686,-500.0,0.00019178,2]
[358522513,1745230243696,-557.38,0.00019178,2]
[358522515,1745230243705,-500.0,0.00019178,2]
[358522518,1745230243716,-500.0,0.00019178,2]
[358522520,1745230243726,-500.0,0.00019178,2]
[358522522,1745230243736,-500.0,0.00019178,2]
[358522524,1745230243745,-500.0,0.00019178,2]
[358522525,1745230243757,-500.0,0.00019178,2]
[358522528,1745230243766,-500.0,0.00019178,2]
[358522530,1745230243776,-500.0,0.00019178,2]
[358522532,1745230243784,-500.0,0.00019178,2]
[358522534,1745230243796,-500.0,0.00019178,2]
[358522536,1745230243805,-500.0,0.00019178,2]
[358522538,1745230243814,-500.0,0.00019178,2]
[358522540,1745230243823,-500.0,0.00019178,2]
[358522542,1745230243833,-500.0,0.00019178,2]
[358522544,1745230243843,-500.0,0.00019178,2]
[358522546,1745230243852,-500.0,0.00019178,2]
[358522548,1745230243860,-500.0,0.00019178,2]
[358522550,1745230243870,-500.0,0.00019178,2]
[358522552,1745230243879,-500.0,0.00019178,2]
[358522554,1745230243888,-500.0,0.00019178,2]
[358522556,1745230243897,-471.43669537,0.00019178,2]
[358522557,1745230243906,-596.57,0.00019178,2]
[358522558,1745230243915,-500.0,0.00019178,2]
[358522559,1745230243924,-643.15,0.00019178,2]
[358522561,1745230243934,-500.0,0.00019178,2]
[358522563,1745230243943,-631.03,0.00019178,2]
[358522565,1745230243952,-500.0,0.00019178,2]
[358522567,1745230243961,-500.0,0.00019178,2]
[358522568,1745230243971,-500.0,0.00019178,2]
[358522569,1745230243980,-500.0,0.00019178,2]
[358522570,1745230243989,-500.0,0.00019178,2]
[358522571,1745230243999,-500.0,0.00019178,2]
[358522572,1745230244009,-500.0,0.00019178,2]
[358522573,1745230244018,-167.48185052,0.00019178,2]
[358522574,1745230244028,-500.0,0.00019178,2]
[358522575,1745230244038,-500.0,0.00019178,2]
[358522576,1745230244051,-405.24811934,0.00019178,2]
[358522577,1745230244060,-500.0,0.00019178,2]
[358522579,1745230244070,-521.12257341,0.00019178,2]
[358522580,1745230244079,-500.0,0.00019178,2]
[358522581,1745230244089,-500.0,0.00019178,2]
[358522582,1745230244099,-500.0,0.00019178,2]
[358522583,1745230244108,-500.0,0.00019178,2]
[358522585,1745230244118,-500.0,0.00019178,2]
[358522586,1745230244127,-504.9341442,0.00019178,2]
[358522587,1745230244138,-524.23,0.00019178,2]
[358522588,1745230244147,-500.0,0.00019178,2]
[358522589,1745230244157,-500.0,0.00019178,2]
[358522590,1745230244166,-500.0,0.00019178,2]
[358522591,1745230244176,-500.0,0.00019178,2]
[358522592,1745230244186,-551.56480109,0.00019178,2]
[358522593,1745230244196,-503.14969859,0.00019178,2]
[358522594,1745230244205,-500.0,0.00019178,2]
[358522595,1745230244215,-500.0,0.00019178,2]
[358522596,1745230244225,-500.0,0.00019178,2]
[358522597,1745230244234,-500.0,0.00019178,2]
[358522598,1745230244243,-547.97435345,0.00019178,2]
[358522599,1745230244253,-500.0,0.00019178,2]
[358522600,1745230244264,-216.62398249,0.00019178,2]
[358522601,1745230244274,-500.0,0.00019178,2]
[358522602,1745230244283,-500.0,0.00019178,2]
[358522603,1745230244294,-500.0,0.00019178,2]
[358522604,1745230244303,-501.20939142,0.00019178,2]
[358522605,1745230244313,-500.0,0.00019178,2]
[358522606,1745230244323,-500.0,0.00019178,2]
[358522607,1745230244332,-500.0,0.00019178,2]
[358522608,1745230244342,-500.0,0.00019178,2]
[358522609,1745230244352,-500.0,0.00019178,2]
[358522610,1745230244361,-500.0,0.00019178,2]
[358522611,1745230244370,-500.0,0.00019178,2]
[358522612,1745230244380,-500.0,0.00019178,2]
[358522613,1745230244390,-500.0,0.00019178,2]
[358522614,1745230244399,-500.0,0.00019178,2]
[358522615,1745230244408,-500.0,0.00019178,2]
[358522616,1745230244417,-500.0,0.00019178,2]
[358522617,1745230244427,-500.0,0.00019178,2]
[358522618,1745230244436,-500.0,0.00019178,2]
[358522619,1745230244446,-500.0,0.00019178,2]
[358522620,1745230244455,-500.0,0.00019178,2]
[358522621,1745230244465,-159.54629284,0.00019178,2]
[358522622,1745230244474,-500.0,0.00019178,2]
[358522623,1745230244485,-500.0,0.00019178,2]
[358522624,1745230244494,-351.47925193,0.00019178,2]
[358522625,1745230244508,-148.52074807,0.00019178,2]
[358522626,1745230244518,-500.0,0.00019178,2]
[358522627,1745230244527,-500.0,0.00019178,2]
[358522628,1745230244536,-500.0,0.00019178,2]
[358522629,1745230244547,-500.0,0.00019178,2]
[358522630,1745230244558,-500.0,0.00019178,2]
[358522631,1745230244567,-500.0,0.00019178,2]
[358522632,1745230244577,-500.0,0.00019178,2]
[358522633,1745230244587,-500.0,0.00019178,2]
[358522634,1745230244596,-500.0,0.00019178,2]
[358522635,1745230244606,-500.0,0.00019178,2]
[358522636,1745230244615,-496.1416958,0.00019178,2]
[358522637,1745230244625,-500.0,0.00019178,2]
[358522638,1745230244635,-648.41,0.00019178,2]
[358522639,1745230244647,-500.0,0.00019178,2]
[358522640,1745230244658,-500.0,0.00019178,2]
[358522641,1745230244668,-500.0,0.00019178,2]
[358522642,1745230244677,-500.0,0.00019178,2]
[358522643,1745230244686,-500.0,0.00019178,2]
[358522644,1745230244695,-500.0,0.00019178,2]
[358522645,1745230244705,-638.91,0.00019178,2]
[358522646,1745230244716,-500.0,0.00019178,2]
[358522647,1745230244727,-500.0,0.00019178,2]
[358522648,1745230244737,-500.0,0.00019178,2]
[358522649,1745230244746,-500.0,0.00019178,2]
[358522650,1745230244757,-500.0,0.00019178,2]
[358522651,1745230244766,-524.09602727,0.00019178,2]
[358522652,1745230244776,-500.0,0.00019178,2]
[358522653,1745230244787,-500.0,0.00019178,2]
[358522654,1745230244797,-520.24158922,0.00019178,2]
[358522655,1745230244806,-500.0,0.00019178,2]
[358522656,1745230244815,-500.0,0.00019178,2]
[358522657,1745230244825,-500.0,0.00019178,2]
[358522658,1745230244835,-500.0,0.00019178,2]
[358522659,1745230244844,-500.0,0.00019178,2]
[358522660,1745230244854,-500.0,0.00019178,2]
[358522661,1745230244863,-500.0,0.00019178,2]
[358522662,1745230244873,-500.0,0.00019178,2]
[358522663,1745230244882,-500.0,0.00019178,2]
[358522664,1745230244892,-500.0,0.00019178,2]
[358522665,1745230244901,-500.0,0.00019178,2]
[358522666,1745230244911,-500.0,0.00019178,2]
[358522667,1745230244921,-555.18,0.00019178,2]
[358522668,1745230244930,-500.0,0.00019178,2]
[358522669,1745230244939,-500.0,0.00019178,2]
[358522670,1745230244949,-500.0,0.00019178,2]
[358522671,1745230244958,-500.0,0.00019178,2]
[358522672,1745230244968,-500.0,0.00019178,2]
[358522673,1745230244978,-500.0,0.00019178,2]
[358522674,1745230244988,-500.0,0.00019178,2]
[358522675,1745230244999,-500.0,0.00019178,2]
[358522676,1745230245009,-500.0,0.00019178,2]
[358522677,1745230245019,-199.92219085,0.00019178,2]
[358522678,1745230245029,-500.0,0.00019178,2]
[358522679,1745230245039,-500.0,0.00019178,2]
[358522680,1745230245049,-500.0,0.00019178,2]
[358522681,1745230245059,-500.0,0.00019178,2]
[358522682,1745230245071,-500.0,0.00019178,2]
[358522683,1745230245081,-500.0,0.00019178,2]
[358522684,1745230245090,-500.0,0.00019178,2]
[358522685,1745230245100,-500.0,0.00019178,2]
[358522686,1745230245109,-500.0,0.00019178,2]
[358522687,1745230245119,-500.0,0.00019178,2]
[358522688,1745230245129,-519.77,0.00019178,2]
[358522689,1745230245139,-500.0,0.00019178,2]
[358522690,1745230245149,-500.0,0.00019178,2]
[358522691,1745230245158,-500.0,0.00019178,2]
[358522692,1745230245169,-500.0,0.00019178,2]
[358522693,1745230245179,-500.0,0.00019178,2]